fUST/lending_fUST_20240806
["ID","MTS","AMOUNT","RATE_DAILY","PERIOD"]
[334305774,1722931752727,-500.0,0.00016886,2]
[334305775,1722931752751,-500.0,0.00016886,2]
[334305776,1722931752777,-500.0,0.00016886,2]
[334305777,1722931752798,-500.0,0.00016886,2]
[334305778,1722931752822,-500.0,0.00016886,2]
[334305779,1722931752845,-500.0,0.00016886,2]
[334305780,1722931752868,-500.0,0.00016886,2]
[334305781,1722931752890,-500.0,0.00016886,2]
[334305782,1722931752911,-500.0,0.00016886,2]
[334305783,1722931752935,-500.0,0.00016886,2]
[334305784,1722931752958,-500.0,0.00016886,2]
[334305785,1722931752979,-500.0,0.00016886,2]
[334305786,1722931753001,-435.7550503,0.00016886,2]
[334305787,1722931753025,-500.0,0.00016886,2]
[334305788,1722931753047,-500.0,0.00016886,2]
[334305789,1722931753069,-500.0,0.00016886,2]
[334305790,1722931753091,-500.0,0.00016886,2]
[334305791,1722931753113,-500.0,0.00016886,2]
[334305793,1722931753140,-500.0,0.00016886,2]
[334305794,1722931753162,-500.0,0.00016886,2]
[334305795,1722931753185,-200.0,0.00016886,2]
[334305796,1722931753208,-500.0,0.00016886,2]
[334305797,1722931753236,-500.0,0.00016886,2]
[334305798,1722931753260,-500.0,0.00016886,2]
[334305799,1722931753284,-500.0,0.00016886,2]
[334305800,1722931753306,-500.0,0.00016886,2]
[334305801,1722931753330,-500.0,0.00016886,2]
[334305802,1722931753353,-500.0,0.00016886,2]
[334305803,1722931753375,-500.0,0.00016886,2]
[334305804,1722931753399,-500.0,0.00016886,2]
[334305805,1722931753421,-500.0,0.00016886,2]
[334305806,1722931753444,-1239.69729321,0.00016887,2]
[334305807,1722931753467,-154.69833824,0.00016887,2]
[334305808,1722931753489,-324.60775045,0.00016887,2]
[334305809,1722931753512,-912.60929894,0.00016887,2]
[334305810,1722931753534,-210.68435147,0.00016887,2]
[334305811,1722931753556,-1185.5525,0.00016887,2]
[334305812,1722931753578,-24900.0,0.00016888,2]
[334305813,1722931753601,-738.831578,0.00016914,2]
[334305814,1722931753623,-43380.3762768,0.00017245,2]
[334305815,1722931753646,-250.0,0.00017663,2]
[334305816,1722931753669,-250.0,0.00017711,2]
[334305817,1722931753692,-250.0,0.0001776,2]
[334305818,1722931753715,-250.0,0.00017808,2]
[334305819,1722931753737,-250.0,0.00017857,2]
[334305820,1722931753759,-250.0,0.00017905,2]
[334305821,1722931753787,-26248.89863627,0.0001794,2]
[334305822,1722931755206,152.61,0.00010959,2]
[334305823,1722931763149,-594.97124773,0.00016887,2]
[334305824,1722931763173,-49579.13347853,0.0001794,2]
[334305825,1722931763195,-3599.83690875,0.0001795,2]
[334305826,1722931763217,-250.0,0.00017954,2]
[334305827,1722931763239,-250.0,0.00018002,2]
[334305828,1722931763260,-250.0,0.0001805,2]
[334305829,1722931763292,-250.0,0.00018099,2]
[334305830,1722931763313,-250.0,0.00018147,2]
[334305831,1722931763333,-250.0,0.00018196,2]
[334305832,1722931763354,-250.0,0.00018244,2]
[334305833,1722931763377,-250.0,0.00018293,2]
[334305834,1722931763400,-250.0,0.00018341,2]
[334305835,1722931763420,-250.0,0.00018389,2]
[334305836,1722931763442,-250.0,0.00018438,2]
[334305837,1722931763463,-420.0,0.00018444,2]
[334305838,1722931763702,-250.0,0.00018486,2]
[334305839,1722931763727,-250.0,0.00018535,2]
[334305840,1722931763748,-420.0,0.00018573,2]
[334305841,1722931763769,-250.0,0.00018583,2]
[334305842,1722931763793,-3599.83690873,0.00018686,2]
[334305843,1722931763814,-500.0,0.0001888,2]
[334305844,1722931763834,-184.77481635,0.0001888,2]
[334305845,1722931763854,-305.06406767,0.0001888,2]
[334305846,1722931763874,-500.0,0.0001888,2]
[334305847,1722931763895,-500.0,0.0001888,2]
[334305848,1722931763915,-295.46286083,0.0001888,2]
[334305849,1722931765097,-154.79497275,0.00016887,2]
[334305850,1722931782193,154.69833824,0.00013283,2]
[334305851,1722931788579,193.97749269,0.00013283,2]
[334305852,1722931788952,1643.98585032,0.00013283,2]
[334305853,1722931788974,2183.427652,0.00013283,2]
[334305854,1722931788998,83051.50882193,0.00013283,2]
[334305855,1722931795872,154.79103211,0.00013283,2]
[334305856,1722931798717,154.69833824,0.00014,2]
[334305857,1722931800763,549.43994442,0.00013283,2]
[334305858,1722931807307,156.29506882,0.00013283,2]
[334305859,1722931807974,810.79057909,0.00013283,2]
[334305860,1722931811334,154.96199077,0.00013283,2]
[334305918,1722931832070,-912.60929894,0.00015,2]
[334305920,1722931832079,-154.69833824,0.00017,2]
[334305922,1722931832088,-159.128432,0.000181,2]
[334305923,1722931832098,-159.128432,0.00018163,2]
[334305925,1722931832107,-159.128432,0.00018226,2]
[334305927,1722931832117,-159.128432,0.00018289,2]
[334305929,1722931832128,-159.128432,0.00018351,2]
[334305931,1722931832138,-159.128432,0.00018414,2]
[334305934,1722931832159,-159.128432,0.00018477,2]
[334305936,1722931832172,-159.128432,0.0001854,2]
[334305939,1722931832182,-82.3057457,0.00018603,2]
[334305972,1722931838017,-297.21655646,0.000161,2]
[334305973,1722931838026,-76.8226863,0.00018603,2]
[334305974,1722931838036,-159.128432,0.00018666,2]
[334305975,1722931838046,-159.128432,0.00018729,2]
[334305976,1722931838055,-159.128432,0.00018792,2]
[334305977,1722931838065,-1643.39565176,0.00018845,7]
[334305978,1722931838074,-2849.31423163,0.00018845,2]
[334305979,1722931838083,-159.128432,0.00018854,2]
[334305980,1722931838094,-300.0,0.00018879,2]
[334305981,1722931838104,-300.0,0.00018879,2]
[334305982,1722931838114,-159.128432,0.00018917,2]
[334305983,1722931838123,-1610.90790663,0.00018921,2]
[334305984,1722931838133,-1072.13475562,0.00018945,2]
[334305985,1722931838143,-155.12858967,0.0001895,2]
[334305986,1722931838152,-319.78809537,0.00018969,2]
[334305987,1722931838166,-287.79610663,0.00018976,2]
[334305988,1722931838177,-154.77557542,0.00018976,2]
[334305989,1722931838187,-336.24575672,0.00018976,2]
[334305990,1722931838197,-187.10655414,0.00018976,2]
[334305991,1722931838207,-336.24575672,0.00018976,2]
[334305992,1722931838217,-180.46429061,0.00018976,2]
[334305993,1722931838227,-245.0,0.00018976,2]
[334305994,1722931838236,-178.61776629,0.00018979,2]
[334305995,1722931838247,-404.55348665,0.00018979,2]
[334305996,1722931838257,-159.128432,0.0001898,2]
[334305997,1722931838266,-159.43074512,0.00018988,2]
[334305998,1722931838276,-500.0,0.00018988,2]
[334305999,1722931838285,-186.92009912,0.00018988,2]
[334306000,1722931838295,-500.0,0.00018988,2]
[334306001,1722931838306,-500.0,0.00018988,2]
[334306002,1722931838315,-500.0,0.00018988,2]
[334306003,1722931838324,-413.57550503,0.00018988,2]
[334306004,1722931838333,-26619.2771217,0.00018989,2]
[334306005,1722931838343,-845.65510903,0.00018989,2]
[334306006,1722931838352,-470.9321154,0.00018989,2]
[334306007,1722931838362,-20762.30804091,0.00018989,2]
[334306008,1722931838372,-845.65510903,0.00018989,2]
[334306009,1722931838381,-154.68290005,0.00018989,2]
[334306010,1722931838391,-413.99267103,0.00018999,2]
[334306011,1722931838400,-160.19468673,0.00018999,2]
[334306012,1722931838410,-154.69833824,0.00018999,2]
[334306013,1722931838420,-154.69833824,0.00018999,2]
[334306014,1722931838430,-413.99267103,0.00018999,2]
[334306015,1722931838440,-1000.0,0.00019,19]
[334306016,1722931838449,-156.14369305,0.00019,2]
[334306017,1722931838459,-159.128432,0.00019043,2]
[334306018,1722931838469,-694.25197697,0.00019046,2]
[334306019,1722931838479,-623.21378521,0.00019046,2]
[334306020,1722931838488,-7002.81077238,0.00019102,2]
[334306021,1722931838498,-205.22796673,0.00019102,2]
[334306022,1722931838508,-235.8,0.00019129,3]
[334306023,1722931838518,-9643.98087226,0.00019139,2]
[334306024,1722931838527,-9643.98087226,0.00019139,2]
[334306025,1722931838537,-763.09,0.00019147,3]
[334306026,1722931838547,-154.69833824,0.00019155,2]
[334306027,1722931838556,-366.90426852,0.00019155,2]
[334306028,1722931838566,-186.09556152,0.00019156,2]
[334306029,1722931838576,-302.69261352,0.00019156,2]
[334306030,1722931838585,-500.0,0.00019156,2]
[334306031,1722931838595,-500.0,0.00019156,2]
[334306032,1722931838605,-500.0,0.00019156,2]
[334306033,1722931838614,-500.0,0.00019156,2]
[334306034,1722931838624,-500.0,0.00019156,2]
[334306035,1722931838633,-210.50490226,0.00019156,2]
[334306036,1722931838643,-500.0,0.00019156,2]
[334306037,1722931838652,-500.0,0.00019156,2]
[334306038,1722931838662,-500.0,0.00019156,2]
[334306039,1722931838671,-500.0,0.00019156,2]
[334306040,1722931838682,-500.0,0.00019156,2]
[334306041,1722931838691,-500.0,0.00019156,2]
[334306042,1722931838700,-500.0,0.00019156,2]
[334306043,1722931838710,-75828.0321148,0.00019157,2]
[334306044,1722931838719,-75828.0321148,0.00019167,2]
[334306045,1722931838728,-1763.75242219,0.00019167,2]
[334306046,1722931838738,-35016.81526257,0.00019167,2]
[334306047,1722931838748,-1109.04434069,0.00019167,2]
[334306048,1722931838757,-695.1835415,0.00019167,2]
[334306049,1722931838766,-200.0,0.00019173,2]
[334306050,1722931838776,-3006.28096809,0.00019177,2]
[334306051,1722931838785,-150.112233,0.000192,2]
[334306052,1722931838795,-4758.04297857,0.00019249,2]
[334306053,1722931838804,-2139.49023769,0.00019256,2]
[334306054,1722931838813,-1500.0,0.00019256,2]
[334306055,1722931838823,-194.60736977,0.00019256,2]
[334306056,1722931838832,-181.97015372,0.00019256,2]
[334306057,1722931838841,-568.56884199,0.00019256,2]
[334306058,1722931838851,-862.42234122,0.00019256,2]
[334306059,1722931838861,-309.69056865,0.00019256,2]
[334306060,1722931838871,-3599.83690873,0.00019422,2]
[334306061,1722931838880,-75828.0321148,0.00019441,2]
[334306062,1722931838889,-932.36255016,0.00019451,2]
[334306063,1722931838899,-816.39879119,0.00019451,2]
[334306064,1722931838908,-810.1149959,0.00019451,2]
[334306065,1722931838917,-1041.51620061,0.00019451,2]
[334306066,1722931838926,-269.73277317,0.00019451,2]
[334306067,1722931838936,-266.72359904,0.00019451,2]
[334306068,1722931838945,-200.0,0.00019473,2]
[334306069,1722931838955,-154.76012181,0.00019477,2]
[334306070,1722931838964,-154.9767129,0.00019477,2]
[334306071,1722931838973,-154.69833824,0.00019477,2]
[334306072,1722931838983,-209.90726283,0.00019477,2]
[334306073,1722931838992,-300.11155827,0.00019477,2]
[334306074,1722931839002,-154.83742071,0.00019477,2]
[334306075,1722931839012,-162.22860515,0.00019477,2]
[334306076,1722931839021,-190.938833,0.00019522,2]
[334306077,1722931839031,-188.24924053,0.00019547,2]
[334306078,1722931839040,-727.58928536,0.00019547,2]
[334306079,1722931839049,-9110.76868748,0.00019547,2]
[334306080,1722931839058,-342.11743161,0.00019547,2]
[334306081,1722931839068,-356.53097519,0.00019547,2]
[334306082,1722931839078,-1991.94991085,0.00019547,2]
[334306083,1722931839088,-165.56810844,0.00019547,2]
[334306084,1722931839097,-2124.82285669,0.00019547,2]
[334306085,1722931839106,-154.90888079,0.00019547,2]
[334306086,1722931839116,-4758.04297857,0.00019636,2]
[334306087,1722931839126,-4758.04297857,0.00019781,2]
[334306088,1722931839381,-1997.33322748,0.00019999,2]
[334306089,1722931839391,-154.69833824,0.00019999,2]
[334306090,1722931839400,-154.69833824,0.00019999,2]
[334306091,1722931839409,-259.70012615,0.00019999,2]
[334306092,1722931839428,-201.8691675,0.00019999,2]
[334306093,1722931839440,-156.99277567,0.00019999,2]
[334306094,1722931839451,-306.50051506,0.00019999,2]
[334306095,1722931839461,-413.72644132,0.00019999,2]
[334306096,1722931839472,-1163.02940656,0.00019999,2]
[334306097,1722931839482,-156.35315554,0.0002,2]
[334306098,1722931839494,-427.95722184,0.0002,2]
[334306099,1722931839505,-1000.0,0.0002,20]
[334306100,1722931839516,-309.38127527,0.0002,2]
[334306101,1722931839528,-1443.89362386,0.0002,2]
[334306102,1722931839539,-298.64578678,0.0002,2]
[334306104,1722931839549,-294.13159854,0.0002,2]
[334306105,1722931839560,-2395.09747727,0.0002,2]
[334306106,1722931839570,-4758.04297857,0.00020081,2]
[334306107,1722931839580,-3599.83690873,0.00020158,2]
[334306108,1722931839591,-75828.0321148,0.0002027,2]
[334306109,1722931839601,-494.3368924,0.0002028,2]
[334306110,1722931839612,-1091.57771247,0.0002028,2]
[334306111,1722931839623,-255.34789342,0.0002028,2]
[334306112,1722931839633,-4758.04297857,0.00020425,2]
[334306113,1722931839644,-150.112233,0.000205,3]
[334306114,1722931839655,-420.0,0.00020581,2]
[334306115,1722931839665,-282.284509,0.00020707,2]
[334306116,1722931839676,-183.12142007,0.00020721,2]
[334306117,1722931839686,-4758.04297857,0.00020761,2]
[334306118,1722931839697,-420.0,0.00020767,2]
[334306119,1722931839707,-3762.20495206,0.00020816,2]
[334306120,1722931839718,-400.0,0.00020842,2]
[334306121,1722931839728,-3599.83690873,0.00020894,2]
[334306122,1722931839738,-712.62391758,0.00020938,2]
[334306123,1722931839748,-266.32590117,0.0002097,2]
[334306124,1722931839758,-1000.0,0.00021,21]
[334306125,1722931839768,-154.88961185,0.00021011,2]
[334306126,1722931839778,-154.76012181,0.00021048,2]
[334306127,1722931839788,-154.76012181,0.00021048,2]
[334306128,1722931839798,-4758.04297857,0.00021064,2]
[334306129,1722931839808,-4758.0429786,0.00021112,2]
[334306130,1722931839817,-4181.6719909,0.00021532,2]
[334306131,1722931839827,-1626.04191113,0.00021532,2]
[334306132,1722931839836,-6896.69376362,0.00021532,2]
[334306133,1722931839846,-1000.0,0.00021591,2]
[334306134,1722931839856,-1794.84907646,0.00021591,2]
[334306135,1722931839868,-1794.84907646,0.00021591,2]
[334306136,1722931839879,-150.112233,0.000216,5]
[334306137,1722931839890,-2278.51525994,0.00021602,3]
[334306138,1722931839901,-951.94046237,0.00021602,2]
[334306139,1722931839913,-200.0,0.00021733,2]
[334306140,1722931839926,-150.112233,0.000219,3]
[334306141,1722931839937,-160.57653845,0.00022,2]
[334306142,1722931839947,-213.29,0.00022,7]
[334306143,1722931839957,-3373.85,0.00022,14]
[334306144,1722931839966,-502.12,0.00022,14]
[334306145,1722931839976,-302.45563732,0.00022,2]
[334306146,1722931839986,-302.42545213,0.00022,2]
[334306147,1722931839995,-332.10698837,0.00022,2]
[334306148,1722931840006,-302.45563732,0.0002222,2]
[334306149,1722931840016,-302.42545213,0.0002222,2]
[334306150,1722931840026,-260.0,0.00022436,2]
[334306151,1722931840035,-302.45563732,0.0002244,2]
[334306152,1722931840046,-302.42545213,0.0002244,2]
[334306153,1722931840056,-302.45563732,0.0002266,2]
[334306154,1722931840067,-302.42545213,0.0002266,2]
[334306155,1722931840077,-587.0,0.00022844,2]
[334306156,1722931840087,-600.0,0.00022846,2]
[334306157,1722931840098,-302.45563732,0.0002288,2]
[334306158,1722931840109,-302.42545213,0.0002288,2]
[334306159,1722931840119,-165.0,0.00023,2]
[334306160,1722931840129,-451.3615706,0.000231,4]
[334306161,1722931840138,-453.63817819,0.000231,4]
[334306162,1722931840149,-400.0,0.00023103,2]
[334306163,1722931840160,-150.112233,0.000232,4]
[334306164,1722931840173,-453.63817819,0.0002332,4]
[334306165,1722931840184,-453.63817819,0.0002354,4]
[334306166,1722931840195,-453.63817819,0.0002376,4]
[334306167,1722931840207,-712.62391754,0.00023775,2]
[334306168,1722931840221,-453.63817819,0.0002398,4]
[334306169,1722931840232,-213.29,0.00024,7]
[334306170,1722931840244,-4390.83493264,0.00024,30]
[334306171,1722931840254,-1000.0,0.00024,24]
[334306172,1722931840268,-3373.85,0.000241,14]
[334306173,1722931840279,-150.112233,0.000243,5]
[334306174,1722931840289,-846.09502037,0.00024361,2]
[334306175,1722931840299,-150.112233,0.000245,3]
[334306176,1722931840309,-200.0,0.00024658,15]
[334306177,1722931840319,-380.0,0.00024658,2]
[334306178,1722931840329,-502.12,0.000247,14]
[334306179,1722931840339,-3762.20495206,0.00024819,2]
[334306180,1722931840349,-309.19612785,0.00025,2]
[334306181,1722931840360,-189.55103082,0.00025,2]
[334306182,1722931840370,-402.40869281,0.00025,2]
[334306183,1722931840380,-4026.98830085,0.00025,30]
[334306184,1722931840391,-194.95848255,0.00025106,2]
[334306185,1722931840402,-823.0,0.00025128,2]
[334306186,1722931840413,-800.0,0.00025187,2]
[334306187,1722931840424,-738.831578,0.00025371,2]
[334306188,1722931840434,-163.414202,0.00025405,2]
[334306190,1722931840444,-631.30475102,0.00025579,2]
[334306191,1722931840454,-150.112233,0.000258,8]
[334306192,1722931840465,-1000.0,0.00026,26]
[334306194,1722931840475,-3574.52184507,0.00026099,60]
[334306196,1722931840486,-881.61577024,0.00026457,2]
[334306198,1722931840496,-712.62391754,0.00026613,2]
[334306200,1722931840506,-150.112233,0.00027,7]
[334306202,1722931840516,-502.12,0.00027,14]
[334306204,1722931840526,-282.284509,0.00027167,2]
[334306205,1722931840536,-150.112233,0.000272,9]
[334306206,1722931840547,-150.112233,0.000273,5]
[334306207,1722931840557,-213.29,0.000273,7]
[334306208,1722931840567,-3373.85,0.000273,14]
[334306209,1722931840577,-402.05623603,0.00027397,60]
[334306210,1722931840587,-620.56965111,0.00027497,2]
[334306211,1722931840596,-581.0,0.00027641,2]
[334306212,1722931840606,-1000.0,0.00027778,2]
[334306213,1722931840616,-1000.0,0.00028,28]
[334306214,1722931840626,-150.112233,0.000282,10]
[334306215,1722931840636,-151.0,0.00028467,7]
[334306216,1722931840646,-151.0,0.00028467,7]
[334306217,1722931840656,-816.095877,0.00028467,7]
[334306218,1722931840666,-816.095877,0.00028467,7]
[334306219,1722931840676,-1179.824939,0.00028467,7]
[334306220,1722931840686,-1179.824939,0.00028467,7]
[334306221,1722931840696,-47038.65229178,0.00028468,21]
[334306222,1722931840706,-17646.61537544,0.00028468,21]
[334306223,1722931840715,-1058419.34308768,0.00028468,30]
[334306233,1722931842489,-205.22796673,0.00019102,2]
[334306234,1722931842498,-156.99277567,0.00019999,2]
[334306235,1722931842507,-1637.7792576,0.00028468,30]
[334306236,1722931842518,-2246.00469155,0.00028468,30]
[334306237,1722931842530,-38754.52866317,0.00028468,30]
[334306238,1722931842539,-150.5,0.0002869,120]
[334306239,1722931842548,-3762.20495206,0.00028821,2]
[334306241,1722931842558,-242.0,0.00029,30]
[334306243,1722931842566,-712.62391754,0.0002945,2]
[334306245,1722931842575,-284.83809153,0.0003,3]
[334306246,1722931842584,-9711.2271758,0.0003,2]
[334306247,1722931842597,-94395.61666332,0.0003,2]
[334306248,1722931842606,-151.0,0.0003,120]
[334306249,1722931842616,-151.0,0.0003,120]
[334306250,1722931842626,-314.35121047,0.0003,2]
[334306251,1722931842635,-1200.0,0.00030573,2]
[334306254,1722931842645,-153.0,0.00031012,2]
[334306257,1722931842654,-153.0,0.00031012,2]
[334306260,1722931842663,-153.0,0.00031012,2]
[334306262,1722931842673,-153.0,0.00031012,2]
[334306264,1722931842682,-153.0,0.00031012,2]
[334306266,1722931842691,-153.0,0.00031012,2]
[334306268,1722931842701,-153.0,0.00031012,2]
[334306270,1722931842710,-153.0,0.00031012,2]
[334306272,1722931842719,-153.0,0.00031012,2]
[334306273,1722931842728,-153.0,0.00031012,2]
[334306276,1722931842737,-153.0,0.00031012,2]
[334306277,1722931842746,-153.0,0.00031012,2]
[334306280,1722931842755,-153.0,0.00031012,2]
[334306283,1722931842764,-153.0,0.00031012,2]
[334306285,1722931842773,-153.0,0.00031012,2]
[334306289,1722931842782,-153.0,0.00031012,2]
[334306291,1722931842792,-153.0,0.00031012,2]
[334306293,1722931842801,-153.0,0.00031012,2]
[334306295,1722931842810,-153.0,0.00031012,2]
[334306296,1722931842819,-153.0,0.00031012,2]
[334306298,1722931842829,-153.0,0.00031012,2]
[334306299,1722931842839,-153.0,0.00031246,2]
[334306301,1722931842849,-153.0,0.00031246,2]
[334306302,1722931842859,-153.0,0.00031246,2]
[334306303,1722931842868,-153.0,0.00031246,2]
[334306304,1722931842878,-153.0,0.00031246,2]
[334306305,1722931842888,-153.0,0.00031246,2]
[334306306,1722931842897,-153.0,0.00031246,2]
[334306307,1722931842907,-153.0,0.00031246,2]
[334306308,1722931842917,-153.0,0.00031246,2]
[334306309,1722931842927,-153.0,0.00031246,2]
[334306310,1722931842936,-153.0,0.00031246,2]
[334306311,1722931842946,-153.0,0.00031246,2]
[334306312,1722931842956,-153.0,0.00031246,2]
[334306313,1722931842966,-153.0,0.00031246,2]
[334306314,1722931842975,-153.0,0.00031246,2]
[334306315,1722931842984,-153.0,0.00031246,2]
[334306316,1722931842994,-153.0,0.00031246,2]
[334306317,1722931843004,-153.0,0.00031246,2]
[334306318,1722931843014,-153.0,0.00031246,2]
[334306319,1722931843023,-153.0,0.00031246,2]
[334306320,1722931843033,-153.0,0.00031246,2]
[334306321,1722931843043,-153.0,0.00031246,2]
[334306322,1722931843053,-153.0,0.00031246,2]
[334306323,1722931843062,-153.0,0.00031246,2]
[334306324,1722931843071,-153.0,0.00031246,2]
[334306325,1722931843080,-153.0,0.00031246,2]
[334306326,1722931843090,-153.0,0.00031246,2]
[334306327,1722931843099,-153.0,0.00031246,2]
[334306328,1722931843109,-153.0,0.00031246,2]
[334306329,1722931843119,-153.0,0.00031246,2]
[334306330,1722931843129,-153.0,0.00031246,2]
[334306331,1722931843139,-153.0,0.00031246,2]
[334306332,1722931843150,-153.0,0.00031246,2]
[334306333,1722931843159,-153.0,0.00031246,2]
[334306334,1722931843173,-153.0,0.00031246,2]
[334306335,1722931843182,-153.0,0.00031246,2]
[334306336,1722931843191,-153.0,0.00031246,2]
[334306337,1722931843201,-153.0,0.00031246,2]
[334306338,1722931843211,-153.0,0.00031246,2]
[334306340,1722931843221,-153.0,0.00031246,2]
[334306342,1722931843231,-153.0,0.00031246,2]
[334306344,1722931843241,-153.0,0.00031246,2]
[334306346,1722931843251,-153.0,0.00031246,2]
[334306347,1722931843262,-153.0,0.00031246,2]
[334306348,1722931843271,-502.12,0.000313,14]
[334306349,1722931843281,-926.828015,0.00031507,120]
[334306350,1722931843291,-150.112233,0.00032,10]
[334306351,1722931843301,-1000.0,0.00032,32]
[334306352,1722931843311,-3373.85,0.000321,14]
[334306353,1722931843321,-150.0,0.00032108,14]
[334306354,1722931843330,-174.219999,0.00032108,14]
[334306355,1722931843339,-1294.47924928,0.00032108,60]
[334306356,1722931843349,-151.0,0.00032137,120]
[334306357,1722931843359,-151.0,0.00032181,15]
[334306358,1722931843368,-213.29,0.000322,7]
[334306359,1722931843379,-712.62391754,0.00032288,2]
[334306360,1722931843390,-3762.20495206,0.00032824,2]
[334306361,1722931843400,-33843.05103485,0.00033,2]
[334306362,1722931843480,-534.77348609,0.000161,2]
[334306363,1722931843490,-287.82937614,0.00018969,2]
[334306364,1722931843499,-194.60736977,0.00019177,2]
[334306365,1722931843509,-153.0,0.00031246,2]
[334306366,1722931843519,-153.0,0.00031246,2]
[334306367,1722931843528,-9896.989768,0.00033,2]
[334306368,1722931843581,-5494.38992842,0.00033,2]
[334306369,1722931843592,-151.0,0.00033014,120]
[334306370,1722931843602,-151.0,0.00033364,15]
[334306371,1722931843613,-1400.0,0.00033542,2]
[334306372,1722931843622,-282.284509,0.00033626,2]
[334306373,1722931843631,-1000.0,0.00034,34]
[334306374,1722931843641,-151.0,0.00034274,120]
[334306375,1722931843651,-151.0,0.00034546,15]
[334306376,1722931843661,-154.81349605,0.00035,4]
[334306377,1722931843670,-712.62391754,0.00035125,2]
[334306378,1722931843680,-500.0,0.00035616,7]
[334306379,1722931843689,-519.07783047,0.00035616,7]
[334306380,1722931843699,-17766.62,0.00035616,3]
[334306381,1722931843709,-151.0,0.00035729,15]
[334306382,1722931843718,-151.0,0.00035729,15]
[334306383,1722931843728,-1411.0,0.00035843,2]
[334306384,1722931843738,-150.112233,0.000359,9]
[334306385,1722931843747,-1000.0,0.00036,36]
[334306386,1722931843756,-151.0,0.00036027,120]
[334306387,1722931843765,-213.29,0.000364,30]
[334306388,1722931843774,-151.0,0.00036411,120]
[334306389,1722931843783,-163.414202,0.00036563,2]
[334306390,1722931843793,-1600.0,0.00036664,2]
[334306391,1722931843802,-926.828015,0.00036758,120]
[334306392,1722931843813,-3762.20495206,0.00036826,2]
[334306393,1722931843823,-151.0,0.00036912,15]
[334306394,1722931843833,-151.0,0.00036912,15]
[334306395,1722931843842,-153.0,0.00037397,2]
[334306396,1722931843851,-150.239,0.00037884,2]
[334306397,1722931843861,-506.0,0.00037884,2]
[334306398,1722931843871,-712.62391754,0.00037963,2]
[334306399,1722931843881,-150.0,0.00037973,5]
[334306400,1722931843890,-5000.0,0.00038,38]
[334306401,1722931843900,-16868.0,0.00038,120]
[334306402,1722931843909,-13096.69472992,0.00038,120]
[334306403,1722931843992,-153.0,0.00031246,2]
[334306404,1722931844001,-3091.25799986,0.00038,120]
[334306405,1722931844013,-680.04727022,0.00038,120]
[334306406,1722931844023,-151.0,0.00038,7]
[334306407,1722931844033,-151.0,0.00038,7]
[334306408,1722931844042,-199.560373,0.00038,7]
[334306409,1722931844051,-199.560373,0.00038,7]
[334306410,1722931844061,-151.0,0.00038,7]
[334306411,1722931844070,-225.886501,0.00038,7]
[334306412,1722931844080,-350.67415,0.00038,7]
[334306413,1722931844089,-350.67415,0.00038,7]
[334306414,1722931844098,-285.279368,0.00038,7]
[334306415,1722931844108,-1000.0,0.00038,38]
[334306416,1722931844118,-285.279368,0.00038,7]
[334306417,1722931844127,-228.524363,0.00038,7]
[334306418,1722931844137,-228.524363,0.00038,7]
[334306419,1722931844147,-151.0,0.00038,7]
[334306420,1722931844156,-259.027347,0.00038,7]
[334306421,1722931844166,-816.095877,0.00038,7]
[334306422,1722931844178,-816.095877,0.00038,7]
[334306423,1722931844192,-1179.824939,0.00038,7]
[334306424,1722931844202,-171.66791215,0.00038,7]
[334306439,1722931846559,-154.68290005,0.00019153,2]